fUSD/lending_fUSD_20240122
["ID","MTS","AMOUNT","RATE_DAILY","PERIOD"]
[312462631,1705904012359,820.63501258,0.0002,2]
[312462632,1705904014388,852.96844475,0.0002,2]
[312462633,1705904015816,6089.46292903,0.0002,2]
[312462634,1705904024753,16545.02684994,0.0002,2]
[312462635,1705904030268,5214.89911458,0.0002,2]
[312462636,1705904032376,851.50717739,0.0002,2]
[312462637,1705904103726,2084.97012239,0.00019111,2]
[312462644,1705904274292,-213.1,0.00021892,2]
[312462645,1705904274312,-3190.67771766,0.00022078,2]
[312462646,1705904274333,-157.86814618,0.000228,2]
[312462647,1705904274353,-150.0,0.00022898,2]
[312462648,1705904274374,-3808.35413616,0.00022899,2]
[312462649,1705904274551,50602.65367978,0.00019111,2]
[312462650,1705904294849,23327.04066648,0.00019111,2]
[312462651,1705904294878,200.0,0.00019111,2]
[312462652,1705904294903,200.0,0.00019111,2]
[312462653,1705904294932,2000.0,0.00019111,2]
[312462654,1705904294954,2000.0,0.00019111,2]
[312462655,1705904294975,2000.0,0.00019111,2]
[312462656,1705904294996,2000.0,0.00019111,2]
[312462657,1705904295018,2000.0,0.00019111,2]
[312462658,1705904295039,2000.0,0.00019111,2]
[312462659,1705904295061,2000.0,0.00019111,2]
[312462660,1705904295082,2000.0,0.00019111,2]
[312462661,1705904295104,2000.0,0.00019111,2]
[312462662,1705904295124,2000.0,0.00019111,2]
[312462663,1705904295146,2000.0,0.00019111,2]
[312462664,1705904295167,2000.0,0.00019111,2]
[312462665,1705904295188,2000.0,0.00019111,2]
[312462666,1705904295210,840.35935362,0.00019111,2]
[312462667,1705904401322,1159.64064638,0.00019111,2]
[312462668,1705904401344,2000.0,0.00019111,2]
[312462669,1705904401365,935.71812678,0.00019111,2]
[312462703,1705905031715,-285.0,0.00022191,2]
[312462704,1705905031818,-230.4,0.00022191,2]
[312462705,1705905031828,-78.1094613,0.000227,2]
[312462706,1705905031841,-206.88634745,0.000227,2]
[312462707,1705905031850,-150.0,0.00022728,2]
[312462708,1705905031860,-667.96898179,0.00022896,2]
[312462709,1705905031870,-150.0,0.00022896,2]
[312462710,1705905031880,-300.0,0.00022896,2]
[312462711,1705905031889,-450.04141544,0.00022897,2]
[312462712,1705905031915,-1317.76550808,0.00022897,2]
[312462713,1705905031931,-17249.72208713,0.00022897,2]
[312462714,1705905031940,-271.79362444,0.00022898,2]
[312462716,1705905031950,-2170.76170994,0.00022898,2]
[312462718,1705905031959,-682.7491,0.000229,2]
[312462720,1705905031969,-19511.6353,0.000229,2]
[312462722,1705905031986,-1444.7711,0.000229,2]
[312462724,1705905031996,-1000.0,0.000229,2]
[312462726,1705905032006,-299.6565,0.000229,2]
[312462728,1705905032016,-1312.84936448,0.00022998,2]
[312462730,1705905032027,-1047.6799468,0.00022998,2]
[312462732,1705905032037,-197.21763142,0.00022998,2]
[312462734,1705905032046,-165.71846349,0.00022998,2]
[312462737,1705905032058,-248.26460506,0.00022998,2]
[312462739,1705905032068,-1256.24889353,0.00022998,2]
[312462741,1705905032078,-155.32411836,0.00022998,2]
[312462743,1705905032087,-1442.1042752,0.00022998,2]
[312462745,1705905032096,-2027.83267257,0.00022999,2]
[312462747,1705905032106,-28230.35089901,0.00023,2]
[312462749,1705905032115,-150.0,0.00023,2]
[312462751,1705905032125,-23900.0,0.00023884,2]
[312462753,1705905032134,-250.0,0.00023889,2]
[312462755,1705905032144,-546.57,0.00023908,2]
[312462757,1705905032153,-1944.1,0.00023908,2]
[312462759,1705905032163,-227.62,0.00023971,2]
[312462761,1705905032172,-201.27157051,0.00024,2]
[312462763,1705905032181,-3786.6,0.0002404,2]
[312462765,1705905032191,-2027.84,0.00024071,2]
[312462767,1705905032200,-200.0,0.00024075,2]
[312462769,1705905032209,-3045.2,0.00024123,2]
[312462771,1705905032219,-2000.0,0.00024237,2]
[312462773,1705905032228,-200.0,0.00024246,2]
[312462775,1705905032237,-745.95,0.00024263,2]
[312462777,1705905032246,-335.23,0.0002428,2]
[312462779,1705905032255,-1904.02,0.00024292,2]
[312462781,1705905032265,-776.25,0.0002432,2]
[312462783,1705905032275,-2500.0,0.00024346,3]
[312462785,1705905032284,-1852.42,0.00024374,2]
[312462787,1705905032294,-302.83,0.00024374,2]
[312462789,1705905032304,-153.18566396,0.00024398,2]
[312462791,1705905032313,-14992.8662,0.000244,2]
[312462793,1705905032322,-150.0,0.00024404,2]
[312462794,1705905032331,-157.18,0.00024419,2]
[312462796,1705905032340,-2705.0,0.00024421,2]
[312462797,1705905032351,-250.0,0.00024423,2]
[312462798,1705905032360,-738.53553613,0.00024447,2]
[312462822,1705905037760,-578.72446387,0.00024447,2]
[312462823,1705905037771,-74.95454874,0.00024455,2]
[312462824,1705905037888,-440.44545126,0.00024455,2]
[312462825,1705905037898,-277.02,0.0002446,2]
[312462826,1705905037907,-2194.66134761,0.00024484,2]
[312462827,1705905037973,-608.0627175,0.00024484,2]
[312462829,1705905037998,-1691.63593489,0.00024484,2]
[312462831,1705905038008,-1784.69737488,0.00024498,2]
[312462845,1705905038142,-1012.572,0.00024498,2]
[312462960,1705905040085,-857.53234024,0.00024498,2]
[312462961,1705905040095,-221.00974885,0.00024499,2]
[312462962,1705905040105,-3798.6361802,0.00024499,2]
[312462963,1705905040115,-3262.0,0.000245,2]
[312462964,1705905040125,-35846.0,0.000245,2]
[312462965,1705905040134,-500.0,0.00024541,2]
[312462966,1705905040144,-185.96,0.00024612,2]
[312462967,1705905040154,-157.18,0.00024631,2]
[312462968,1705905040163,-250.0,0.00024658,2]
[312462969,1705905040172,-157.18,0.00024843,2]
[312462970,1705905040182,-486.51712666,0.00025,2]
[312462971,1705905040191,-1584.56156338,0.00025,2]
[312462972,1705905040200,-933.94016922,0.00025,2]
[312462973,1705905040210,-202.08717836,0.00025,2]
[312462974,1705905040220,-303.55478187,0.00025,2]
[312462975,1705905040230,-167.43304946,0.00025,2]
[312462976,1705905040239,-350.0,0.00025,3]
[312462977,1705905040249,-157.18,0.00025055,2]
[312462978,1705905040565,-1004.33779352,0.00025087,2]
[312462979,1705905040582,-210.0,0.00025186,2]
[312462980,1705905040591,-157.18,0.00025267,2]
[312462981,1705905040600,-162.23,0.00025295,2]
[312462982,1705905040609,-153.18566394,0.00025315,2]
[312462983,1705905040619,-157.18,0.00025479,2]
[312462984,1705905040628,-1944.1,0.00025551,2]
[312462985,1705905040638,-157.55597116,0.000256,2]
[312462986,1705905040648,-533.09,0.00025666,2]
[312462987,1705905040658,-1317.26,0.0002567,2]
[312462988,1705905040667,-157.18,0.00025691,2]
[312462989,1705905040677,-1000.0,0.00025804,2]
[312462990,1705905040687,-800.0,0.00025805,2]
[312462991,1705905040696,-168.66,0.00025918,2]
[312462992,1705905040705,-500.0,0.0002594,2]
[312462993,1705905040714,-153.18566394,0.00026232,2]
[312462994,1705905040724,-180.0,0.000263,2]
[312462995,1705905040733,-889.54,0.00026575,2]
[312462996,1705905040743,-515.4,0.00026719,2]
[312462997,1705905040752,-1317.26,0.00026892,2]
[312462998,1705905040762,-998.0,0.00026913,2]
[312462999,1705905040771,-1935.0,0.00026913,2]
[312463000,1705905040780,-430.176,0.00026913,2]
[312463001,1705905040789,-594.0,0.00026913,2]
[312463002,1705905040799,-153.971,0.00026913,2]
[312463003,1705905040809,-515.732,0.00026913,2]
[312463004,1705905040819,-238.986,0.00026913,2]
[312463005,1705905040829,-437.596,0.00026913,2]
[312463006,1705905040839,-868.0,0.00026913,2]
[312463007,1705905040850,-8105.0,0.00026913,2]
[312463008,1705905040860,-564.242,0.00026913,2]
[312463009,1705905040870,-311.647,0.00026913,2]
[312463010,1705905040883,-1359.0,0.00026913,2]
[312463011,1705905040892,-7361.0,0.00026913,2]
[312463012,1705905040902,-5660.059,0.00026913,2]
[312463013,1705905040912,-3082.712,0.00026913,2]
[312463014,1705905040922,-831.276,0.00026913,2]
[312463015,1705905040931,-2286.441,0.00026913,2]
[312463016,1705905040941,-2908.0,0.00026913,2]
[312463017,1705905040951,-19722.0,0.00026913,2]
[312463018,1705905040960,-987.972,0.00026913,2]
[312463019,1705905040969,-1856.0,0.00026913,2]
[312463020,1705905040981,-836.0,0.00026913,2]
[312463021,1705905040991,-450.0,0.00026913,2]
[312463022,1705905041000,-187.89,0.00026913,2]
[312463023,1705905041010,-151.0,0.00026913,7]
[312463024,1705905041020,-159.608886,0.00026913,7]
[312463025,1705905041030,-154.71154,0.00026913,7]
[312463026,1705905041040,-151.0,0.00026913,7]
[312463027,1705905041049,-155.550051,0.00026913,7]
[312463028,1705905041060,-151.0,0.00026913,7]
[312463029,1705905041069,-151.0,0.00026913,7]
[312463030,1705905041078,-755.015284,0.00026913,7]
[312463031,1705905041087,-755.015284,0.00026913,7]
[312463032,1705905041097,-151.0,0.00026913,7]
[312463033,1705905041106,-151.0,0.00026913,7]
[312463034,1705905041115,-151.0,0.00026913,7]
[312463035,1705905041125,-151.0,0.00026913,7]
[312463036,1705905041134,-151.0,0.00026913,7]
[312463037,1705905041143,-151.0,0.00026913,7]
[312463038,1705905041154,-151.0,0.00026913,7]
[312463039,1705905041163,-164.87415,0.00026913,7]
[312463040,1705905041173,-338.735053,0.00026913,7]
[312463041,1705905041182,-338.735053,0.00026913,7]
[312463042,1705905041191,-151.0,0.00026913,7]
[312463043,1705905041201,-151.0,0.00026913,7]
[312463044,1705905041210,-416.124404,0.00026913,7]
[312463045,1705905041219,-416.124404,0.00026913,7]
[312463046,1705905041229,-171.23,0.0002694,2]
[312463047,1705905041239,-533.09,0.0002695,2]
[312463048,1705905041248,-428.9940242,0.00027,2]
[312463049,1705905041258,-400.0,0.00027,3]
[312463050,1705905041267,-200.0,0.00027069,2]
[312463051,1705905041277,-151.0,0.00027138,7]
[312463052,1705905041287,-160.187262,0.00027138,7]
[312463053,1705905041296,-151.0,0.00027138,7]
[312463054,1705905041305,-153.18566394,0.00027148,2]
[312463055,1705905041315,-1944.1,0.00027195,2]
[312463056,1705905041324,-161.54,0.00027292,2]
[312463057,1705905041333,-745.95,0.00027296,2]
[312463058,1705905041342,-800.0,0.00027342,2]
[312463059,1705905041355,-185.96,0.00027351,2]
[312463060,1705905041365,-800.0,0.0002737,2]
[312463061,1705905041374,-150.0,0.00027397,2]
[312463062,1705905041387,-151.0,0.00027397,7]
[312463063,1705905041397,-151.0,0.00027397,7]
[312463064,1705905041406,-151.0,0.00027397,7]
[312463065,1705905041415,-1000.0,0.00027397,2]
[312463066,1705905041425,-1000.0,0.00027397,2]
[312463067,1705905041434,-1000.0,0.00027397,2]
[312463068,1705905041444,-1000.0,0.00027397,2]
[312463069,1705905041453,-1000.0,0.00027397,2]
[312463070,1705905041462,-1000.0,0.00027397,2]
[312463071,1705905041472,-1000.0,0.00027397,2]
[312463072,1705905041482,-1000.0,0.00027397,2]
[312463073,1705905041491,-1000.0,0.00027397,2]
[312463074,1705905041500,-1000.0,0.00027397,2]
[312463075,1705905041509,-1000.0,0.00027397,2]
[312463076,1705905041518,-1000.0,0.00027397,2]
[312463077,1705905041528,-1000.0,0.00027397,2]
[312463078,1705905041538,-1000.0,0.00027397,2]
[312463079,1705905041547,-1000.0,0.00027397,2]
[312463080,1705905041557,-1000.0,0.00027397,2]
[312463081,1705905041567,-1000.0,0.00027397,2]
[312463082,1705905041576,-1000.0,0.00027397,2]
[312463083,1705905041586,-1000.0,0.00027397,2]
[312463084,1705905041595,-1000.0,0.00027397,2]
[312463085,1705905041605,-1000.0,0.00027397,2]
[312463086,1705905041615,-1000.0,0.00027397,2]
[312463087,1705905041624,-1000.0,0.00027397,2]
[312463088,1705905041634,-1000.0,0.00027397,2]
[312463089,1705905041644,-1000.0,0.00027397,2]
[312463090,1705905041653,-1000.0,0.00027397,2]
[312463091,1705905041663,-1000.0,0.00027397,2]
[312463092,1705905041672,-1000.0,0.00027397,2]
[312463093,1705905041682,-1000.0,0.00027397,2]
[312463094,1705905041692,-151.0,0.00027397,7]
[312463095,1705905041701,-850.0,0.00027397,2]
[312463096,1705905041711,-151.0,0.00027397,7]
[312463097,1705905041721,-755.015284,0.00027397,7]
[312463098,1705905041730,-755.015284,0.00027397,7]
[312463099,1705905041739,-151.0,0.00027397,7]
[312463100,1705905041748,-151.0,0.00027397,7]
[312463101,1705905041757,-151.0,0.00027397,7]
[312463102,1705905041766,-151.0,0.00027397,7]
[312463103,1705905041775,-151.0,0.00027397,7]
[312463104,1705905041785,-416.124404,0.00027397,7]
[312463105,1705905041794,-800.0,0.00027534,2]
[312463106,1705905041803,-162.23,0.00027674,2]
[312463107,1705905041813,-163.11,0.00027981,2]
[312463108,1705905041823,-161.54,0.00028025,2]
[312463109,1705905041832,-153.18566394,0.00028065,2]
[312463110,1705905041842,-1317.26,0.00028114,2]
[312463111,1705905041851,-151.0,0.00028115,7]
[312463112,1705905041861,-151.0,0.00028115,7]
[312463113,1705905041870,-160.297708,0.00028115,7]
[312463114,1705905041879,-338.735053,0.00028115,7]
[312463115,1705905041889,-338.735053,0.00028115,7]
[312463116,1705905041898,-151.0,0.00028115,7]
[312463117,1705905041908,-533.09,0.00028233,2]
[312463118,1705905041917,-161.54,0.00028759,2]
[312463119,1705905041926,-1944.1,0.00028839,2]
[312463120,1705905041935,-500.0,0.00028899,2]
[312463121,1705905041945,-153.18566394,0.00028982,2]
[312463122,1705905041955,-515.4,0.00028983,2]
[312463123,1705905041964,-450.0,0.00029,3]
[312463124,1705905041975,-800.0,0.00029031,2]
[312463125,1705905041987,-500.0,0.00029065,2]
[312463126,1705905041997,-1317.26,0.00029337,2]
[312463127,1705905042006,-161.54,0.00029492,2]
[312463128,1705905042017,-533.09,0.00029516,2]
[312463129,1705905042027,-1000.0,0.000297,2]
[312463130,1705905042037,-733.58508975,0.000298,2]
[312463131,1705905042046,-176.14639569,0.000298,2]
[312463132,1705905042057,-511.026,0.00029913,2]
[312463133,1705905042067,-1935.0,0.00029913,2]
[312463134,1705905042076,-161.616,0.00029913,2]
[312463135,1705905042086,-508.0,0.00029913,2]
[312463136,1705905042097,-319.0,0.00029913,2]
[312463137,1705905042107,-865.71,0.00029913,2]
[312463138,1705905042117,-5384.806,0.00029913,2]
[312463139,1705905042127,-1359.0,0.00029913,2]
[312463140,1705905042137,-2326.461,0.00029913,2]
[312463141,1705905042147,-2275.0,0.00029913,2]
[312463142,1705905042157,-2908.0,0.00029913,2]
[312463143,1705905042167,-947.0,0.00029913,2]
[312463144,1705905042176,-1856.0,0.00029913,2]
[312463145,1705905042186,-836.0,0.00029913,2]
[312463146,1705905042195,-326.993,0.00029913,2]
[312463147,1705905042204,-151.0,0.00029913,7]
[312463148,1705905042214,-151.0,0.00029913,7]
[312463149,1705905042223,-155.0,0.0003,2]
[312463150,1705905042233,-2359.05768121,0.0003,2]
[312463151,1705905042242,-155.0,0.0003,4]
[312463152,1705905042251,-192.63032767,0.0003,2]
[312463153,1705905042261,-715.89288,0.0003,4]
[312463154,1705905042271,-956.64070173,0.0003,2]
[312463155,1705905042281,-765.61042609,0.0003,4]
[312463156,1705905042291,-1181.29145428,0.0003,4]
[312463157,1705905042301,-622.69961765,0.0003,2]
[312463158,1705905042310,-817.71022069,0.0003,4]
[312463159,1705905042319,-151.0,0.0003,7]
[312463160,1705905042329,-151.0,0.0003,7]
[312463161,1705905042338,-151.0,0.0003,7]
[312463162,1705905042347,-151.0,0.0003,7]
[312463163,1705905042357,-755.015284,0.0003,7]
[312463164,1705905042367,-755.015284,0.0003,7]
[312463165,1705905042376,-151.0,0.0003,7]
[312463166,1705905042385,-151.0,0.0003,7]
[312463167,1705905042395,-151.0,0.0003,7]
[312463169,1705905042404,-151.0,0.0003,7]
[312463171,1705905042414,-212.24674,0.0003,2]
[312463173,1705905042423,-162.23,0.00030053,2]
[312463175,1705905042432,-161.54,0.00030226,2]
[312463177,1705905042442,-745.95,0.00030329,2]
[312463178,1705905042450,-1944.1,0.00030483,2]
[312463179,1705905042460,-533.09,0.00030799,2]
[312463180,1705905042471,-151.0,0.00030911,7]
[312463181,1705905042480,-151.0,0.00030911,7]
[312463182,1705905042489,-151.0,0.00030911,7]
[312463183,1705905042498,-161.54,0.00030959,2]
[312463184,1705905042507,-206.0,0.00031011,2]
[312463185,1705905042517,-515.4,0.00031247,2]
[312463186,1705905042526,-151.0,0.00031491,7]
[312463187,1705905042537,-188.933747,0.00031491,7]
[312463188,1705905042546,-338.735053,0.00031491,7]
[312463189,1705905042556,-338.735053,0.00031491,7]
[312463190,1705905042565,-151.0,0.00031491,7]
[312463191,1705905042574,-180.0122,0.00031648,4]
[312463192,1705905042583,-161.54,0.00031693,2]
[312463193,1705905042593,-201.0122,0.00031748,4]
[312463194,1705905042603,-341.64463074,0.000318,2]
[312463195,1705905042612,-201.0122,0.00031848,4]
[312463196,1705905042621,-2402.84302069,0.000319,5]
[312463197,1705905042630,-201.0122,0.00031948,4]
[312463198,1705905042639,-512.46694611,0.0003199,2]
[312463200,1705905042649,-6240.30837226,0.00032,4]
[312463202,1705905042658,-72185.07435965,0.00032,2]
[312463209,1705905042715,-416.124404,0.00027397,7]
[312463211,1705905042725,-445.15398112,0.00032,2]
[312463215,1705905042748,-306.09729367,0.00032,2]
[312463217,1705905042761,-613.46221154,0.00032,2]
[312463229,1705905042960,-1233.0,0.00026913,2]
[312463230,1705905042971,-1233.0,0.00029913,2]
[312463231,1705905042984,-21538.35486726,0.00032,2]
[312463232,1705905042994,-207.49794746,0.00032,4]
[312463233,1705905043004,-151.0,0.00032,7]
[312463234,1705905043014,-151.0,0.00032,7]
[312463235,1705905043024,-151.0,0.00032,7]
[312463236,1705905043034,-151.0,0.00032,7]
[312463237,1705905043044,-279.871547,0.00032,7]
[312463238,1705905043055,-151.0,0.00032,7]
[312463239,1705905043064,-151.0,0.00032,7]
[312463240,1705905043074,-151.0,0.00032,7]
[312463241,1705905043083,-151.0,0.00032,7]
[312463242,1705905043093,-151.0,0.00032,7]
[312463243,1705905043102,-755.015284,0.00032,7]
[312463244,1705905043112,-755.015284,0.00032,7]
[312463246,1705905043121,-151.0,0.00032,7]
[312463248,1705905043130,-151.0,0.00032,7]
[312463250,1705905043140,-151.0,0.00032,7]
[312463251,1705905043149,-151.0,0.00032,7]
[312463252,1705905043159,-151.0,0.00032,7]
[312463253,1705905043169,-338.735053,0.00032,7]
[312463254,1705905043178,-338.735053,0.00032,7]
[312463255,1705905043187,-151.0,0.00032,7]
[312463256,1705905043197,-235.219525,0.00032,7]
[312463257,1705905043207,-416.124404,0.00032,7]
[312463258,1705905043217,-416.124404,0.00032,7]
[312463259,1705905043226,-416.124404,0.00032,7]
[312463260,1705905043235,-416.124404,0.00032,7]
[312463261,1705905043245,-904.0,0.00032043,5]
[312463262,1705905043254,-1944.1,0.00032127,2]
[312463263,1705905043264,-500.0,0.00032189,2]
[312463264,1705905043273,-170.82231537,0.00032209,2]
[312463265,1705905043283,-800.0,0.00032256,2]
[312463266,1705905043293,-161.54,0.00032426,2]
[312463267,1705905043302,-155.54682715,0.000325,2]
[312463268,1705905043312,-182.0,0.00032527,2]
[312463269,1705905043322,-171.23,0.00032657,2]
[312463270,1705905043331,-341.52,0.00032877,15]
[312463271,1705905043341,-834.595,0.00032913,2]
[312463272,1705905043351,-999.616,0.00032913,2]
[312463273,1705905043360,-2275.0,0.00032913,2]
[312463274,1705905043370,-2733.771,0.00032913,2]
[312463275,1705905043380,-947.0,0.00032913,2]
[312463276,1705905043389,-1856.0,0.00032913,2]
[312463277,1705905043399,-555.218,0.00032913,2]
[312463278,1705905043409,-1400.0,0.00033,2]
[312463279,1705905043419,-206.0,0.00033081,6]
[312463280,1705905043429,-745.95,0.00033362,2]
[312463281,1705905043439,-546.57,0.00033471,2]
[312463282,1705905043449,-2402.84302068,0.00033471,6]
[312463283,1705905043459,-515.4,0.00033511,2]
[312463284,1705905043469,-175.4,0.00033532,2]
[312463285,1705905043478,-201.0122,0.00033548,4]
[312463286,1705905043488,-201.0122,0.00033648,4]
[312463287,1705905043498,-220.0122,0.00033748,4]
[312463288,1705905043508,-1436.53,0.00033844,2]
[312463289,1705905043517,-11389.8,0.00033844,30]
[312463290,1705905043527,-220.0122,0.00033848,4]
[312463291,1705905043537,-220.0122,0.00033948,4]
[312463292,1705905043547,-1000.0,0.00034,4]
[312463293,1705905043557,-500.0,0.00034,2]
[312463294,1705905043566,-151.0,0.00034,7]
[312463295,1705905043576,-151.0,0.00034,7]
[312463296,1705905043586,-151.0,0.00034,7]
[312463297,1705905043595,-151.0,0.00034,7]
[312463298,1705905043605,-151.0,0.00034,7]
[312463299,1705905043615,-151.0,0.00034,7]
[312463300,1705905043625,-220.0122,0.00034048,4]
[312463301,1705905043635,-218.804293,0.00034148,7]
[312463302,1705905043644,-201.0122,0.00034148,4]
[312463303,1705905043653,-157.29825035,0.000342,4]
[312463304,1705905043662,-201.0122,0.00034248,4]
[312463305,1705905043672,-201.0122,0.00034348,4]
[312463306,1705905043681,-201.0122,0.00034448,4]
[312463307,1705905043691,-13597.03107475,0.000345,2]
[312463308,1705905043700,-151.0,0.000345,7]
[312463309,1705905043710,-151.0,0.000345,7]
[312463310,1705905043719,-755.015284,0.000345,7]
[312463311,1705905043728,-755.015284,0.000345,7]
[312463312,1705905043738,-151.0,0.000345,7]
[312463313,1705905043747,-151.0,0.000345,7]
[312463314,1705905043756,-151.0,0.000345,7]
[312463315,1705905043766,-151.0,0.000345,7]
[312463316,1705905043775,-151.0,0.000345,7]
[312463317,1705905043785,-338.735053,0.000345,7]
[312463318,1705905043794,-338.735053,0.000345,7]
[312463319,1705905043803,-151.0,0.000345,7]
[312463320,1705905043813,-416.124404,0.000345,7]
[312463321,1705905043823,-201.0122,0.00034548,4]
[312463322,1705905043833,-524.78484107,0.00034568,5]
[312463323,1705905043842,-201.0122,0.00034648,4]
[312463324,1705905043852,-201.0122,0.00034748,4]
[312463325,1705905043863,-201.0122,0.00034848,4]
[312463326,1705905043872,-152.17204998,0.00034886,2]
[312463327,1705905043882,-201.0122,0.00034948,4]
[312463328,1705905043891,-16458.70979912,0.00035,2]
[312463329,1705905043901,-208.06538103,0.00035,10]
[312463330,1705905043910,-272.16670442,0.00035,2]
[312463331,1705905043919,-212.24674,0.00035,2]
[312463332,1705905043929,-151.0,0.00035043,7]
[312463333,1705905043938,-151.0,0.00035043,7]
[312463334,1705905043947,-2402.84302068,0.00035043,7]
[312463335,1705905043957,-201.0122,0.00035048,6]
[312463336,1705905043966,-151.0,0.00035142,7]
[312463337,1705905043979,-276.07110171,0.00035142,7]
[312463338,1705905043989,-151.0,0.00035142,7]
[312463339,1705905043998,-151.0,0.00035142,7]
[312463340,1705905044008,-201.0122,0.00035148,6]
[312463341,1705905044018,-206.0,0.00035152,10]
[312463342,1705905044028,-201.0122,0.00035248,6]
[312463343,1705905044038,-500.0,0.00035314,2]
[312463344,1705905044048,-201.0122,0.00035348,6]
[312463345,1705905044059,-10153.76994361,0.00035435,2]
[312463346,1705905044069,-201.0122,0.00035448,6]
[312463347,1705905044079,-800.0,0.00035482,2]
[312463348,1705905044088,-547.0,0.00035529,2]
[312463349,1705905044098,-201.0122,0.00035548,6]
[312463350,1705905044107,-150.0,0.00035593,2]
[312463351,1705905044117,-200.43839479,0.00035616,2]
[312463352,1705905044126,-150.0,0.00035622,2]
[312463353,1705905044136,-150.0,0.0003564,2]
[312463354,1705905044146,-201.0122,0.00035648,6]
[312463355,1705905044155,-150.0,0.00035657,2]
[312463356,1705905044164,-150.0,0.00035682,2]
[312463357,1705905044174,-150.0,0.00035718,2]
[312463358,1705905044183,-150.0,0.00035735,2]
[312463359,1705905044192,-150.0,0.00035741,2]
[312463360,1705905044201,-201.0122,0.00035748,6]
[312463361,1705905044210,-150.0,0.00035749,2]
[312463362,1705905044219,-150.0,0.0003575,2]
[312463363,1705905044235,-515.4,0.00035775,2]
[312463364,1705905044244,-154.3783661,0.00035788,2]
[312463365,1705905044253,-200910.74049945,0.000358,7]
[312463366,1705905044306,-416.124404,0.000345,7]
[312463367,1705905044315,-877.72682142,0.000358,7]
[312463368,1705905045121,-229.209,0.00025862,2]
[312463369,1705905045130,-215.0,0.00028862,2]
[312463370,1705905045140,-153.18566394,0.00029899,2]
[312463371,1705905045149,-1233.0,0.00032913,2]
[312463372,1705905045158,-3384.87796955,0.000358,7]
[312463373,1705905045190,-457.14295137,0.000358,7]
[312463374,1705905045201,-314.63779367,0.000358,7]
[312463375,1705905045213,-16188.61319336,0.000358,7]
[312463376,1705905045225,-39174.26075127,0.000358,7]
[312463377,1705905045234,-3411.75436281,0.000358,8]
[312463378,1705905045243,-151.0,0.000358,7]
[312463379,1705905045252,-151.0,0.000358,7]
[312463380,1705905045261,-151.0,0.000358,7]
[312463381,1705905045270,-199.21833495,0.000358,8]
[312463382,1705905045279,-151.0,0.000358,7]
[312463383,1705905045289,-151.0,0.000358,7]
[312463384,1705905045299,-151.0,0.000358,7]
[312463385,1705905045308,-755.015284,0.000358,7]
[312463386,1705905045318,-755.015284,0.000358,7]
[312463387,1705905045328,-151.0,0.000358,7]
[312463388,1705905045338,-151.0,0.000358,7]
[312463389,1705905045348,-151.0,0.000358,7]
[312463390,1705905045357,-151.0,0.000358,7]
[312463391,1705905045367,-152.78,0.000358,3]
[312463392,1705905045376,-152.78,0.000358,3]
[312463393,1705905045387,-152.78,0.000358,3]
[312463394,1705905045397,-152.78,0.000358,3]